[Event "Titled Tuesday Blitz April 25 Early 2023"]
[White "Manukyan, Sargis A."]
[Black "Bochnicka, Vladimir"]
[WhiteFideId "13303970"]
[BlackFideId "14943450"]
[WhiteElo "2187"]
[BlackElo "2094"]
[Result "1-0"]
[Round "10"]
[TimeControl "180+2"]
[Date "2023.04.25"]
[WhiteClock "0:01:31"]
[BlackClock "0:00:20"]

1. d4 {[%clk 0:03:00]}  Nf6 {[%clk 0:02:51]} 2. c4 {[%clk 0:03:00]}  c5 {[%clk 0:02:50]} 3. d5 {[%clk 0:03:00]}  b5 {[%clk 0:02:50]} 4. cxb5 {[%clk 0:03:01]}  a6 {[%clk 0:02:50]} 5. bxa6 {[%clk 0:03:02]}  g6 {[%clk 0:02:49]} 6. Nc3 {[%clk 0:03:03]}  Bg7 {[%clk 0:02:48]} 7. Nf3 {[%clk 0:03:03]}  Bxa6 {[%clk 0:02:43]} 8. g3 {[%clk 0:03:03]}  O-O {[%clk 0:02:43]} 9. Bg2 {[%clk 0:03:03]}  d6 {[%clk 0:02:41]} 10. O-O {[%clk 0:03:03]}  Nbd7 {[%clk 0:02:41]} 11. Rb1 {[%clk 0:03:03]}  Bb7 {[%clk 0:02:23]} 12. Nh4 {[%clk 0:02:58]}  Qa5 {[%clk 0:02:11]} 13. Qc2 {[%clk 0:02:56]}  Rfb8 {[%clk 0:02:07]} 14. Bd2 {[%clk 0:02:55]}  Qa6 {[%clk 0:02:03]} 15. b3 {[%clk 0:02:48]}  Nb6 {[%clk 0:01:56]} 16. e4 {[%clk 0:02:46]}  c4 {[%clk 0:01:54]} 17. b4 {[%clk 0:02:46]}  Nfd7 {[%clk 0:01:52]} 18. Rfc1 {[%clk 0:02:38]}  Ne5 {[%clk 0:01:45]} 19. Bf1 {[%clk 0:02:22]}  Nd3 {[%clk 0:01:31]} 20. Rd1 {[%clk 0:02:22]}  Nd7 {[%clk 0:01:13]} 21. a4 {[%clk 0:02:18]}  Bd4 {[%clk 0:01:05]} 22. Be3 {[%clk 0:02:05]}  Bxe3 {[%clk 0:01:02]} 23. fxe3 {[%clk 0:02:06]}  N7e5 {[%clk 0:01:01]} 24. a5 {[%clk 0:01:52]}  Bc8 {[%clk 0:00:59]} 25. Ne2 {[%clk 0:01:47]}  Bg4 {[%clk 0:00:57]} 26. Qc3 {[%clk 0:01:43]}  g5 {[%clk 0:00:47]} 27. Nf5 {[%clk 0:01:40]}  Qa7 {[%clk 0:00:29]} 28. Ned4 {[%clk 0:01:39]}  Bxd1 {[%clk 0:00:28]} 29. Rxd1 {[%clk 0:01:36]}  Rxb4 {[%clk 0:00:27]} 30. Bxd3 {[%clk 0:01:33]}  Nxd3 {[%clk 0:00:25]} 31. Nc6 {[%clk 0:01:31]}  Qb7 {[%clk 0:00:20]} 32. Qg7# {[%clk 0:01:31]} 1-0


[Site "https://www.chess.com"]

[Event "Titled Tuesday Blitz April 25 Early 2023"]
[White "Vakhlamov, Igor L."]
[Black "Pauly, Carlo"]
[WhiteFideId "24126748"]
[BlackFideId "24673269"]
[WhiteElo "2400"]
[BlackElo "2254"]
[Result "1-0"]
[Round "10"]
[TimeControl "180+2"]
[Date "2023.04.25"]
[WhiteClock "0:00:12"]
[BlackClock "0:00:41"]

1. e4 {[%clk 0:03:00]}  c5 {[%clk 0:02:58]} 2. Nf3 {[%clk 0:03:01]}  d6 {[%clk 0:02:58]} 3. Nc3 {[%clk 0:03:01]}  Nf6 {[%clk 0:02:57]} 4. d4 {[%clk 0:03:02]}  cxd4 {[%clk 0:02:57]} 5. Qxd4 {[%clk 0:03:03]}  e5 {[%clk 0:02:55]} 6. Bb5+ {[%clk 0:03:02]}  Nbd7 {[%clk 0:02:54]} 7. Qd3 {[%clk 0:03:01]}  h6 {[%clk 0:02:53]} 8. Be3 {[%clk 0:02:57]}  a6 {[%clk 0:02:51]} 9. Bc4 {[%clk 0:02:56]}  Be7 {[%clk 0:02:47]} 10. a4 {[%clk 0:02:51]}  O-O {[%clk 0:02:42]} 11. O-O {[%clk 0:02:50]}  Qc7 {[%clk 0:02:35]} 12. h3 {[%clk 0:02:28]}  Nc5 {[%clk 0:02:32]} 13. Bxc5 {[%clk 0:02:27]}  Qxc5 {[%clk 0:02:33]} 14. Nd5 {[%clk 0:02:27]}  Nxd5 {[%clk 0:02:29]} 15. Bxd5 {[%clk 0:02:27]}  Rb8 {[%clk 0:02:28]} 16. c3 {[%clk 0:02:26]}  b5 {[%clk 0:02:26]} 17. b4 {[%clk 0:02:19]}  Qb6 {[%clk 0:02:22]} 18. axb5 {[%clk 0:02:18]}  axb5 {[%clk 0:02:22]} 19. Ra5 {[%clk 0:02:10]}  Kh8 {[%clk 0:02:13]} 20. Rfa1 {[%clk 0:01:41]}  f5 {[%clk 0:02:11]} 21. Ra7 {[%clk 0:01:36]}  fxe4 {[%clk 0:01:55]} 22. Bxe4 {[%clk 0:01:37]}  Bh4 {[%clk 0:01:43]} 23. Qe3 {[%clk 0:01:01]}  Qxe3 {[%clk 0:01:33]} 24. fxe3 {[%clk 0:01:02]}  Bd8 {[%clk 0:01:33]} 25. Ra8 {[%clk 0:00:52]}  Bc7 {[%clk 0:01:16]} 26. Rxb8 {[%clk 0:00:47]}  Bxb8 {[%clk 0:01:17]} 27. Bc6 {[%clk 0:00:41]}  g5 {[%clk 0:01:10]} 28. Bxb5 {[%clk 0:00:37]}  d5 {[%clk 0:01:11]} 29. Bc6 {[%clk 0:00:29]}  Be6 {[%clk 0:01:04]} 30. Ra8 {[%clk 0:00:27]}  Kg7 {[%clk 0:00:59]} 31. b5 {[%clk 0:00:24]}  Bd6 {[%clk 0:00:56]} 32. Rxf8 {[%clk 0:00:20]}  Kxf8 {[%clk 0:00:57]} 33. Kf2 {[%clk 0:00:17]}  Ke7 {[%clk 0:00:53]} 34. e4 {[%clk 0:00:18]}  Bc5+ {[%clk 0:00:52]} 35. Ke2 {[%clk 0:00:17]}  Kd6 {[%clk 0:00:50]} 36. exd5 {[%clk 0:00:15]}  Bxd5 {[%clk 0:00:50]} 37. Bxd5 {[%clk 0:00:15]}  Kxd5 {[%clk 0:00:51]} 38. Nd2 {[%clk 0:00:15]}  e4 {[%clk 0:00:51]} 39. c4+ {[%clk 0:00:15]}  Ke5 {[%clk 0:00:49]} 40. Nb3 {[%clk 0:00:14]}  Bg1 {[%clk 0:00:48]} 41. c5 {[%clk 0:00:14]}  Kd5 {[%clk 0:00:47]} 42. b6 {[%clk 0:00:13]}  Kc6 {[%clk 0:00:46]} 43. Na5+ {[%clk 0:00:12]}  Kd7 {[%clk 0:00:44]} 44. c6+ {[%clk 0:00:11]}  Kc8 {[%clk 0:00:45]} 45. b7+ {[%clk 0:00:11]}  Kc7 {[%clk 0:00:45]} 46. Nc4 {[%clk 0:00:10]}  Ba7 {[%clk 0:00:42]} 47. Ne5 {[%clk 0:00:10]}  Kd6 {[%clk 0:00:41]} 48. Nd7 {[%clk 0:00:08]}  Kc7 {[%clk 0:00:39]} 49. b8=Q+ {[%clk 0:00:07]}  Bxb8 {[%clk 0:00:39]} 50. Nxb8 {[%clk 0:00:08]}  Kxb8 {[%clk 0:00:40]} 51. Ke3 {[%clk 0:00:08]}  Kc7 {[%clk 0:00:40]} 52. Kxe4 {[%clk 0:00:09]}  Kxc6 {[%clk 0:00:41]} 53. Kf5 {[%clk 0:00:10]}  Kd5 {[%clk 0:00:40]} 54. Kg6 {[%clk 0:00:10]}  Ke5 {[%clk 0:00:41]} 55. Kxh6 {[%clk 0:00:11]}  Kf5 {[%clk 0:00:41]} 56. g4+ {[%clk 0:00:10]}  Kf4 {[%clk 0:00:40]} 57. Kh5 {[%clk 0:00:11]}  Kg3 {[%clk 0:00:41]} 58. Kxg5 {[%clk 0:00:12]} 1-0


[Site "https://www.chess.com"]

[Event "Titled Tuesday Blitz April 25 Early 2023"]
[White "Ashraf, Artin"]
[Black "Herman, Daniel"]
[WhiteFideId "22514805"]
[BlackFideId "30935008"]
[WhiteElo "2188"]
[BlackElo "1897"]
[Result "1-0"]
[Round "10"]
[TimeControl "180+2"]
[Date "2023.04.25"]
[WhiteClock "0:00:04"]
[BlackClock "0:00:01"]

1. e4 {[%clk 0:03:00]}  e5 {[%clk 0:02:59]} 2. Nf3 {[%clk 0:03:00]}  Nc6 {[%clk 0:03:00]} 3. Bb5 {[%clk 0:03:00]}  a6 {[%clk 0:03:00]} 4. Ba4 {[%clk 0:03:00]}  Nf6 {[%clk 0:03:01]} 5. d3 {[%clk 0:03:00]}  b5 {[%clk 0:02:59]} 6. Bb3 {[%clk 0:02:58]}  Be7 {[%clk 0:02:59]} 7. O-O {[%clk 0:02:58]}  O-O {[%clk 0:02:59]} 8. c3 {[%clk 0:02:55]}  d5 {[%clk 0:02:58]} 9. Nbd2 {[%clk 0:02:37]}  dxe4 {[%clk 0:02:44]} 10. dxe4 {[%clk 0:02:34]}  Bb7 {[%clk 0:02:44]} 11. Qe2 {[%clk 0:02:31]}  Bc5 {[%clk 0:02:11]} 12. h3 {[%clk 0:02:27]}  Qe7 {[%clk 0:02:05]} 13. Re1 {[%clk 0:02:26]}  g6 {[%clk 0:01:55]} 14. Nf1 {[%clk 0:02:24]}  Nh5 {[%clk 0:01:49]} 15. Bg5 {[%clk 0:02:17]}  Qe8 {[%clk 0:01:49]} 16. N1h2 {[%clk 0:01:52]}  Nf4 {[%clk 0:01:42]} 17. Bxf4 {[%clk 0:01:20]}  exf4 {[%clk 0:01:43]} 18. Ng4 {[%clk 0:01:20]}  Kg7 {[%clk 0:01:38]} 19. e5 {[%clk 0:00:59]}  Nd8 {[%clk 0:01:24]} 20. Nf6 {[%clk 0:00:41]}  Qe7 {[%clk 0:01:23]} 21. Rad1 {[%clk 0:00:40]}  Bc6 {[%clk 0:01:16]} 22. Bd5 {[%clk 0:00:34]}  Rc8 {[%clk 0:01:08]} 23. Qe4 {[%clk 0:00:25]}  Bxd5 {[%clk 0:01:02]} 24. Rxd5 {[%clk 0:00:20]}  Bb6 {[%clk 0:00:52]} 25. Rd7 {[%clk 0:00:10]}  Qc5 {[%clk 0:00:51]} 26. Nd4 {[%clk 0:00:10]}  Qc4 {[%clk 0:00:34]} 27. Qxf4 {[%clk 0:00:05]}  Bxd4 {[%clk 0:00:17]} 28. Rxd4 {[%clk 0:00:06]}  Qxa2 {[%clk 0:00:15]} 29. Nh5+ {[%clk 0:00:04]}  Kg8 {[%clk 0:00:12]} 30. Nf6+ {[%clk 0:00:03]}  Kg7 {[%clk 0:00:12]} 31. Nd7 {[%clk 0:00:04]}  Ne6 {[%clk 0:00:12]} 32. Qf6+ {[%clk 0:00:04]}  Kh6 {[%clk 0:00:08]} 33. Nxf8 {[%clk 0:00:05]}  Nxd4 {[%clk 0:00:06]} 34. cxd4 {[%clk 0:00:04]}  Rxf8 {[%clk 0:00:06]} 35. e6 {[%clk 0:00:04]}  Qd5 {[%clk 0:00:04]} 36. e7 {[%clk 0:00:04]}  Re8 {[%clk 0:00:04]} 37. Re5 {[%clk 0:00:04]}  Qd6 {[%clk 0:00:02]} 38. Qxf7 {[%clk 0:00:04]}  Qd7 {[%clk 0:00:01]} 39. h4 {[%clk 0:00:04]} 1-0


[Site "https://www.chess.com"]

[Event "Titled Tuesday Blitz April 25 Early 2023"]
[White "Rodchenkov, Sergey D."]
[Black "Postny, Evgeny"]
[WhiteFideId "4168712"]
[BlackFideId "2804344"]
[WhiteElo "2277"]
[BlackElo "2504"]
[Result "0-1"]
[Round "10"]
[TimeControl "180+2"]
[Date "2023.04.25"]
[WhiteClock "0:00:05"]
[BlackClock "0:00:07"]

1. e4 {[%clk 0:02:45]}  c5 {[%clk 0:02:59]} 2. Nf3 {[%clk 0:02:45]}  e6 {[%clk 0:02:59]} 3. d4 {[%clk 0:02:45]}  cxd4 {[%clk 0:03:00]} 4. Nxd4 {[%clk 0:02:46]}  a6 {[%clk 0:02:59]} 5. Nc3 {[%clk 0:02:47]}  Ne7 {[%clk 0:02:57]} 6. h4 {[%clk 0:02:41]}  Nec6 {[%clk 0:02:56]} 7. Nf3 {[%clk 0:02:40]}  b5 {[%clk 0:02:55]} 8. a3 {[%clk 0:02:39]}  Bb7 {[%clk 0:02:55]} 9. h5 {[%clk 0:02:40]}  h6 {[%clk 0:02:55]} 10. Bf4 {[%clk 0:02:40]}  d6 {[%clk 0:02:54]} 11. Qd2 {[%clk 0:02:40]}  Be7 {[%clk 0:02:41]} 12. O-O-O {[%clk 0:02:39]}  e5 {[%clk 0:02:41]} 13. Be3 {[%clk 0:02:39]}  Nd7 {[%clk 0:02:27]} 14. Nd5 {[%clk 0:02:37]}  O-O {[%clk 0:02:12]} 15. Bxh6 {[%clk 0:02:12]}  Nc5 {[%clk 0:02:05]} 16. Nxe7+ {[%clk 0:01:54]}  Qxe7 {[%clk 0:02:05]} 17. Bg5 {[%clk 0:01:46]}  f6 {[%clk 0:02:05]} 18. Be3 {[%clk 0:01:44]}  Rfd8 {[%clk 0:01:52]} 19. h6 {[%clk 0:01:43]}  g6 {[%clk 0:01:52]} 20. Nh4 {[%clk 0:01:39]}  Qf7 {[%clk 0:01:44]} 21. f3 {[%clk 0:01:28]}  Kh7 {[%clk 0:01:41]} 22. Kb1 {[%clk 0:01:16]}  Rac8 {[%clk 0:01:30]} 23. Rh3 {[%clk 0:01:08]}  Na4 {[%clk 0:01:25]} 24. Rg3 {[%clk 0:01:03]}  Ne7 {[%clk 0:01:25]} 25. Bd3 {[%clk 0:00:51]}  Nc5 {[%clk 0:01:09]} 26. Nf5 {[%clk 0:00:24]}  Rc7 {[%clk 0:00:34]} 27. Nxe7 {[%clk 0:00:14]}  Rxe7 {[%clk 0:00:35]} 28. Rh3 {[%clk 0:00:15]}  Rc7 {[%clk 0:00:28]} 29. g4 {[%clk 0:00:15]}  d5 {[%clk 0:00:27]} 30. exd5 {[%clk 0:00:15]}  Rxd5 {[%clk 0:00:26]} 31. Qe2 {[%clk 0:00:14]}  Nxd3 {[%clk 0:00:18]} 32. cxd3 {[%clk 0:00:14]}  b4 {[%clk 0:00:15]} 33. axb4 {[%clk 0:00:11]}  Rb5 {[%clk 0:00:15]} 34. Rhh1 {[%clk 0:00:11]}  Qb3 {[%clk 0:00:14]} 35. Rc1 {[%clk 0:00:10]}  Rd7 {[%clk 0:00:14]} 36. Rc3 {[%clk 0:00:06]}  Qxb4 {[%clk 0:00:13]} 37. Rhc1 {[%clk 0:00:04]}  Bd5 {[%clk 0:00:12]} 38. Rc7 {[%clk 0:00:03]}  Rb7 {[%clk 0:00:12]} 39. Rxd7+ {[%clk 0:00:04]}  Rxd7 {[%clk 0:00:13]} 40. Qd2 {[%clk 0:00:04]}  Qb3 {[%clk 0:00:11]} 41. Qc3 {[%clk 0:00:05]}  Qa2+ {[%clk 0:00:11]} 42. Kc2 {[%clk 0:00:05]}  Bxf3 {[%clk 0:00:09]} 43. Kd2 {[%clk 0:00:05]}  Bxg4 {[%clk 0:00:08]} 44. Ke1 {[%clk 0:00:06]}  Qd5 {[%clk 0:00:08]} 45. Qc6 {[%clk 0:00:04]}  Qxc6 {[%clk 0:00:06]} 46. Rxc6 {[%clk 0:00:05]}  f5 {[%clk 0:00:06]} 47. Bg5 {[%clk 0:00:05]}  f4 {[%clk 0:00:05]} 48. Kd2 {[%clk 0:00:05]}  Bf5 {[%clk 0:00:05]} 49. Kc3 {[%clk 0:00:04]}  Rxd3+ {[%clk 0:00:05]} 50. Kc4 {[%clk 0:00:05]}  Rd7 {[%clk 0:00:06]} 51. Rc8 {[%clk 0:00:03]}  f3 {[%clk 0:00:04]} 52. Bf6 {[%clk 0:00:04]}  Rd4+ {[%clk 0:00:05]} 53. Kc5 {[%clk 0:00:03]}  Bxc8 {[%clk 0:00:05]} 54. Bxe5 {[%clk 0:00:03]}  Rd1 {[%clk 0:00:06]} 55. Bc3 {[%clk 0:00:04]}  Rc1 {[%clk 0:00:05]} 56. Kd4 {[%clk 0:00:04]}  f2 {[%clk 0:00:06]} 57. Be1 {[%clk 0:00:04]}  f1=Q {[%clk 0:00:07]} 58. Bf2 {[%clk 0:00:05]}  Qxf2+ {[%clk 0:00:07]} 0-1


[Site "https://www.chess.com"]

[Event "Titled Tuesday Blitz April 25 Early 2023"]
[White "Kubicka, Anna"]
[Black "Wagner, Dennis"]
[WhiteFideId "1152254"]
[BlackFideId "24650684"]
[WhiteElo "2144"]
[BlackElo "2470"]
[Result "0-1"]
[Round "10"]
[TimeControl "180+2"]
[Date "2023.04.25"]
[WhiteClock "0:00:01"]
[BlackClock "0:00:04"]

1. e4 {[%clk 0:02:57]}  c5 {[%clk 0:02:55]} 2. Ne2 {[%clk 0:02:56]}  g6 {[%clk 0:02:46]} 3. g3 {[%clk 0:02:57]}  Bg7 {[%clk 0:02:46]} 4. Bg2 {[%clk 0:02:57]}  Nf6 {[%clk 0:02:42]} 5. c3 {[%clk 0:02:57]}  d5 {[%clk 0:02:40]} 6. e5 {[%clk 0:02:56]}  Ne4 {[%clk 0:02:38]} 7. d4 {[%clk 0:02:55]}  cxd4 {[%clk 0:02:26]} 8. cxd4 {[%clk 0:02:56]}  Nc6 {[%clk 0:02:27]} 9. Nbc3 {[%clk 0:02:54]}  Nxc3 {[%clk 0:02:23]} 10. Nxc3 {[%clk 0:02:53]}  Be6 {[%clk 0:02:19]} 11. O-O {[%clk 0:02:51]}  Qd7 {[%clk 0:02:19]} 12. Be3 {[%clk 0:02:49]}  O-O {[%clk 0:02:11]} 13. Qd2 {[%clk 0:02:49]}  f6 {[%clk 0:02:07]} 14. f4 {[%clk 0:02:44]}  Rac8 {[%clk 0:02:06]} 15. Rac1 {[%clk 0:02:44]}  Kh8 {[%clk 0:02:05]} 16. b3 {[%clk 0:02:32]}  Rfd8 {[%clk 0:01:38]} 17. Na4 {[%clk 0:02:25]}  b6 {[%clk 0:01:37]} 18. Nc3 {[%clk 0:02:25]}  Bh3 {[%clk 0:01:36]} 19. Bxh3 {[%clk 0:02:11]}  Qxh3 {[%clk 0:01:37]} 20. Qg2 {[%clk 0:02:11]}  Qxg2+ {[%clk 0:01:35]} 21. Kxg2 {[%clk 0:02:12]}  Nb4 {[%clk 0:01:20]} 22. a3 {[%clk 0:02:00]}  Nc6 {[%clk 0:01:12]} 23. b4 {[%clk 0:01:57]}  e6 {[%clk 0:01:10]} 24. Nb5 {[%clk 0:01:53]}  Ne7 {[%clk 0:00:57]} 25. Nd6 {[%clk 0:01:50]}  Rxc1 {[%clk 0:00:48]} 26. Rxc1 {[%clk 0:01:48]}  Rd7 {[%clk 0:00:48]} 27. Ne8 {[%clk 0:01:32]}  fxe5 {[%clk 0:00:42]} 28. fxe5 {[%clk 0:01:27]}  Nf5 {[%clk 0:00:42]} 29. Bf2 {[%clk 0:01:20]}  h5 {[%clk 0:00:41]} 30. Rc8 {[%clk 0:01:19]}  Kh7 {[%clk 0:00:40]} 31. Rc7 {[%clk 0:01:10]}  Rd8 {[%clk 0:00:19]} 32. Nxg7 {[%clk 0:01:01]}  Nxg7 {[%clk 0:00:20]} 33. Rxa7 {[%clk 0:01:02]}  Rc8 {[%clk 0:00:20]} 34. Rb7 {[%clk 0:01:00]}  Rc3 {[%clk 0:00:20]} 35. a4 {[%clk 0:00:56]}  Ra3 {[%clk 0:00:20]} 36. Rxb6 {[%clk 0:00:55]}  Rxa4 {[%clk 0:00:21]} 37. Rb7 {[%clk 0:00:56]}  g5 {[%clk 0:00:21]} 38. g4 {[%clk 0:00:38]}  hxg4 {[%clk 0:00:20]} 39. Kg3 {[%clk 0:00:37]}  Ra2 {[%clk 0:00:13]} 40. Be3 {[%clk 0:00:21]}  Ra3 {[%clk 0:00:11]} 41. Kf2 {[%clk 0:00:20]}  Kg6 {[%clk 0:00:12]} 42. Re7 {[%clk 0:00:17]}  Rb3 {[%clk 0:00:08]} 43. Bd2 {[%clk 0:00:14]}  Rb2 {[%clk 0:00:08]} 44. Ke1 {[%clk 0:00:13]}  Nh5 {[%clk 0:00:03]} 45. Rxe6+ {[%clk 0:00:12]}  Kf5 {[%clk 0:00:04]} 46. Rh6 {[%clk 0:00:12]}  Nf4 {[%clk 0:00:04]} 47. Rf6+ {[%clk 0:00:12]}  Ke4 {[%clk 0:00:05]} 48. Bxf4 {[%clk 0:00:11]}  gxf4 {[%clk 0:00:06]} 49. e6 {[%clk 0:00:12]}  Ke3 {[%clk 0:00:06]} 50. Kd1 {[%clk 0:00:10]}  f3 {[%clk 0:00:04]} 51. e7 {[%clk 0:00:09]}  Kd3 {[%clk 0:00:05]} 52. Kc1 {[%clk 0:00:09]}  Re2 {[%clk 0:00:05]} 53. Rf7 {[%clk 0:00:07]}  Kxd4 {[%clk 0:00:05]} 54. b5 {[%clk 0:00:05]}  Kc5 {[%clk 0:00:05]} 55. h3 {[%clk 0:00:04]}  gxh3 {[%clk 0:00:05]} 56. Rxf3 {[%clk 0:00:04]}  h2 {[%clk 0:00:05]} 57. Rh3 {[%clk 0:00:05]}  Kxb5 {[%clk 0:00:05]} 58. Rxh2 {[%clk 0:00:05]}  Rxe7 {[%clk 0:00:05]} 59. Kd2 {[%clk 0:00:05]}  Kc4 {[%clk 0:00:05]} 60. Rh8 {[%clk 0:00:04]}  Ra7 {[%clk 0:00:04]} 61. Rg8 {[%clk 0:00:02]}  Ra2+ {[%clk 0:00:04]} 62. Kd1 {[%clk 0:00:03]}  Kc3 {[%clk 0:00:04]} 63. Rg3+ {[%clk 0:00:03]}  Kc4 {[%clk 0:00:05]} 64. Rg8 {[%clk 0:00:03]}  d4 {[%clk 0:00:05]} 65. Rg7 {[%clk 0:00:03]}  Kc3 {[%clk 0:00:05]} 66. Rc7+ {[%clk 0:00:03]}  Kd3 {[%clk 0:00:05]} 67. Ke1 {[%clk 0:00:03]}  Ra1+ {[%clk 0:00:05]} 68. Kf2 {[%clk 0:00:03]}  Rd1 {[%clk 0:00:05]} 69. Ra7 {[%clk 0:00:02]}  Kc2 {[%clk 0:00:04]} 70. Ra2+ {[%clk 0:00:02]}  Kb3 {[%clk 0:00:05]} 71. Re2 {[%clk 0:00:01]}  d3 {[%clk 0:00:04]} 0-1


[Site "https://www.chess.com"]

[Event "Titled Tuesday Blitz April 25 Early 2023"]
[White "Karthik Rajaa"]
[Black "Postnikov, Daniil"]
[WhiteFideId "25035215"]
[BlackFideId "4166329"]
[WhiteElo "2215"]
[BlackElo "2261"]
[Result "1/2-1/2"]
[Round "10"]
[TimeControl "180+2"]
[Date "2023.04.25"]
[WhiteClock "0:00:11"]
[BlackClock "0:00:21"]

1. e4 {[%clk 0:02:59]}  e6 {[%clk 0:03:00]} 2. Nf3 {[%clk 0:02:59]}  d5 {[%clk 0:03:00]} 3. exd5 {[%clk 0:02:59]}  exd5 {[%clk 0:03:00]} 4. d4 {[%clk 0:02:59]}  Bd6 {[%clk 0:02:56]} 5. c4 {[%clk 0:02:58]}  Nf6 {[%clk 0:02:55]} 6. c5 {[%clk 0:02:57]}  Be7 {[%clk 0:02:55]} 7. Nc3 {[%clk 0:02:57]}  O-O {[%clk 0:02:54]} 8. Be2 {[%clk 0:02:52]}  b6 {[%clk 0:02:54]} 9. cxb6 {[%clk 0:02:52]}  axb6 {[%clk 0:02:55]} 10. O-O {[%clk 0:02:52]}  Nbd7 {[%clk 0:02:50]} 11. Ne5 {[%clk 0:02:48]}  Bb7 {[%clk 0:02:45]} 12. Bf3 {[%clk 0:02:48]}  Re8 {[%clk 0:02:41]} 13. Re1 {[%clk 0:02:47]}  c5 {[%clk 0:02:33]} 14. Be3 {[%clk 0:02:14]}  Nf8 {[%clk 0:02:23]} 15. Qb3 {[%clk 0:01:52]}  c4 {[%clk 0:02:02]} 16. Qd1 {[%clk 0:01:52]}  Rb8 {[%clk 0:01:40]} 17. Qa4 {[%clk 0:01:45]}  Ra8 {[%clk 0:01:37]} 18. Nc6 {[%clk 0:01:31]}  Qd6 {[%clk 0:01:27]} 19. Nxe7+ {[%clk 0:01:30]}  Rxe7 {[%clk 0:01:28]} 20. Qc2 {[%clk 0:01:21]}  Ng6 {[%clk 0:01:26]} 21. b3 {[%clk 0:01:18]}  Rc8 {[%clk 0:01:23]} 22. Qd2 {[%clk 0:01:10]}  h6 {[%clk 0:01:17]} 23. g3 {[%clk 0:01:05]}  Qb4 {[%clk 0:01:06]} 24. Rec1 {[%clk 0:00:39]}  Rce8 {[%clk 0:01:01]} 25. bxc4 {[%clk 0:00:34]}  dxc4 {[%clk 0:00:58]} 26. Bxb7 {[%clk 0:00:28]}  Rxb7 {[%clk 0:00:59]} 27. Rab1 {[%clk 0:00:28]}  Qa3 {[%clk 0:00:57]} 28. Nb5 {[%clk 0:00:26]}  Qe7 {[%clk 0:00:55]} 29. Rxc4 {[%clk 0:00:24]}  Qd7 {[%clk 0:00:51]} 30. Qb4 {[%clk 0:00:20]}  Nd5 {[%clk 0:00:50]} 31. Qd6 {[%clk 0:00:20]}  Nxe3 {[%clk 0:00:44]} 32. fxe3 {[%clk 0:00:16]}  Rxe3 {[%clk 0:00:40]} 33. Qxd7 {[%clk 0:00:16]}  Rxd7 {[%clk 0:00:41]} 34. Rc8+ {[%clk 0:00:13]}  Kh7 {[%clk 0:00:41]} 35. Rc7 {[%clk 0:00:14]}  Rxc7 {[%clk 0:00:34]} 36. Nxc7 {[%clk 0:00:15]}  Rd3 {[%clk 0:00:35]} 37. d5 {[%clk 0:00:14]}  Ne5 {[%clk 0:00:32]} 38. Rxb6 {[%clk 0:00:13]}  Rd1+ {[%clk 0:00:28]} 39. Kf2 {[%clk 0:00:12]}  Rd2+ {[%clk 0:00:28]} 40. Ke1 {[%clk 0:00:09]}  Nf3+ {[%clk 0:00:25]} 41. Kf1 {[%clk 0:00:09]}  Nxh2+ {[%clk 0:00:25]} 42. Kg1 {[%clk 0:00:09]}  Nf3+ {[%clk 0:00:26]} 43. Kf1 {[%clk 0:00:10]}  Nh2+ {[%clk 0:00:20]} 44. Kg1 {[%clk 0:00:10]}  Nf3+ {[%clk 0:00:21]} 45. Kf1 {[%clk 0:00:11]}  Nh2+ {[%clk 0:00:21]} 1/2-1/2


[Site "https://www.chess.com"]

[Event "Titled Tuesday Blitz April 25 Early 2023"]
[White "Seo, Jung Min"]
[Black "Garv Gaur"]
[WhiteFideId "1734687"]
[BlackFideId "45030839"]
[WhiteElo "2468"]
[BlackElo "2068"]
[Result "1-0"]
[Round "10"]
[TimeControl "180+2"]
[Date "2023.04.25"]
[WhiteClock "0:01:27"]
[BlackClock "0:00:24"]

1. Nf3 {[%clk 0:02:59]}  Nf6 {[%clk 0:02:58]} 2. c3 {[%clk 0:02:57]}  c5 {[%clk 0:02:56]} 3. d4 {[%clk 0:02:57]}  d5 {[%clk 0:02:55]} 4. dxc5 {[%clk 0:02:56]}  a5 {[%clk 0:02:53]} 5. Be3 {[%clk 0:02:42]}  e6 {[%clk 0:02:50]} 6. Bd4 {[%clk 0:02:36]}  Na6 {[%clk 0:02:47]} 7. e3 {[%clk 0:02:34]}  Nxc5 {[%clk 0:02:44]} 8. c4 {[%clk 0:02:28]}  Nce4 {[%clk 0:02:40]} 9. a3 {[%clk 0:02:21]}  Bd6 {[%clk 0:02:31]} 10. cxd5 {[%clk 0:02:17]}  exd5 {[%clk 0:02:32]} 11. Bb5+ {[%clk 0:02:15]}  Bd7 {[%clk 0:02:31]} 12. Bxd7+ {[%clk 0:02:15]}  Qxd7 {[%clk 0:02:32]} 13. O-O {[%clk 0:02:15]}  O-O {[%clk 0:02:31]} 14. Nc3 {[%clk 0:02:15]}  Qf5 {[%clk 0:02:12]} 15. Nxe4 {[%clk 0:02:04]}  dxe4 {[%clk 0:02:09]} 16. Nd2 {[%clk 0:02:04]}  Rfd8 {[%clk 0:01:48]} 17. Qe2 {[%clk 0:02:00]}  Rac8 {[%clk 0:01:39]} 18. Rac1 {[%clk 0:01:55]}  Bb8 {[%clk 0:01:33]} 19. g3 {[%clk 0:01:47]}  Ng4 {[%clk 0:01:29]} 20. Nc4 {[%clk 0:01:44]}  Qh5 {[%clk 0:01:17]} 21. h4 {[%clk 0:01:43]}  g5 {[%clk 0:01:17]} 22. Nb6 {[%clk 0:01:43]}  Rxc1 {[%clk 0:01:15]} 23. Rxc1 {[%clk 0:01:42]}  gxh4 {[%clk 0:01:15]} 24. Rc5 {[%clk 0:01:42]}  Qg6 {[%clk 0:01:11]} 25. Nd5 {[%clk 0:01:42]}  Bd6 {[%clk 0:01:09]} 26. Qxg4 {[%clk 0:01:39]}  Qxg4 {[%clk 0:00:58]} 27. Nf6+ {[%clk 0:01:38]}  Kf8 {[%clk 0:00:58]} 28. Nxg4 {[%clk 0:01:37]}  Bxc5 {[%clk 0:00:58]} 29. Bxc5+ {[%clk 0:01:37]}  Kg7 {[%clk 0:00:58]} 30. gxh4 {[%clk 0:01:37]}  Rd1+ {[%clk 0:00:58]} 31. Kg2 {[%clk 0:01:37]}  h5 {[%clk 0:00:51]} 32. Ne5 {[%clk 0:01:35]}  Rd5 {[%clk 0:00:43]} 33. Bd4 {[%clk 0:01:35]}  f6 {[%clk 0:00:41]} 34. Nc4 {[%clk 0:01:35]}  Kf7 {[%clk 0:00:37]} 35. a4 {[%clk 0:01:33]}  Ke6 {[%clk 0:00:35]} 36. Bc3 {[%clk 0:01:31]}  Kf5 {[%clk 0:00:27]} 37. Kh3 {[%clk 0:01:27]}  b5 {[%clk 0:00:24]} 38. axb5 {[%clk 0:01:27]}  Rxb5 {[%clk 0:00:24]} 39. Nd6+ {[%clk 0:01:27]} 1-0


[Site "https://www.chess.com"]